fUSD/lending_fUSD_20240301
["ID","MTS","AMOUNT","RATE_DAILY","PERIOD"]
[315956988,1709303454101,-500.0,0.00022191,2]
[315956989,1709303454110,-561.12,0.00022191,2]
[315956990,1709303454120,-667.03,0.00022191,2]
[315956991,1709303454129,-500.0,0.00022191,2]
[315956992,1709303454138,-500.0,0.00022191,2]
[315956993,1709303454147,-500.0,0.00022191,2]
[315956994,1709303454156,-500.0,0.00022191,2]
[315956995,1709303454166,-500.0,0.00022191,2]
[315956996,1709303454175,-718.05,0.00022191,2]
[315956997,1709303454184,-500.0,0.00022191,2]
[315956998,1709303454194,-500.0,0.00022191,2]
[315956999,1709303454203,-500.0,0.00022191,2]
[315957000,1709303454212,-500.0,0.00022191,2]
[315957001,1709303454221,-500.0,0.00022191,2]
[315957002,1709303454230,-500.0,0.00022191,2]
[315957003,1709303454239,-1697.99,0.00022191,2]
[315957004,1709303454249,-500.0,0.00022191,2]
[315957005,1709303454258,-500.0,0.00022191,2]
[315957006,1709303454267,-500.0,0.00022191,2]
[315957007,1709303454276,-500.0,0.00022191,2]
[315957008,1709303454286,-704.64,0.00022191,2]
[315957009,1709303454295,-748.47,0.00022191,2]
[315957010,1709303454304,-500.0,0.00022191,2]
[315957011,1709303454314,-518.72,0.00022191,2]
[315957012,1709303454324,-500.0,0.00022191,2]
[315957013,1709303454333,-500.0,0.00022191,2]
[315957014,1709303454343,-1032.16,0.00022191,2]
[315957015,1709303454352,-500.0,0.00022191,2]
[315957016,1709303454361,-500.0,0.00022191,2]
[315957017,1709303454370,-674.11,0.00022191,2]
[315957018,1709303454379,-921.17,0.00022191,2]
[315957019,1709303454388,-453.57473327,0.00022191,2]
[315957020,1709303454397,-500.0,0.00022191,2]
[315957021,1709303454406,-500.0,0.00022191,2]
[315957022,1709303454416,-500.0,0.00022191,2]
[315957023,1709303454425,-522.19,0.00022191,2]
[315957024,1709303454435,-500.0,0.00022191,2]
[315957025,1709303454444,-3284.62,0.00022191,2]
[315957026,1709303454454,-500.0,0.00022191,2]
[315957027,1709303454462,-500.0,0.00022191,2]
[315957028,1709303454472,-7318.76,0.00022191,2]
[315957029,1709303454481,-500.0,0.00022191,2]
[315957030,1709303454490,-500.0,0.00022191,2]
[315957031,1709303454500,-701.45,0.00022191,2]
[315957032,1709303454509,-500.0,0.00022191,2]
[315957033,1709303454518,-703.15,0.00022191,2]
[315957034,1709303454527,-500.0,0.00022191,2]
[315957035,1709303454536,-546.83,0.00022191,2]
[315957036,1709303454545,-500.0,0.00022191,2]
[315957037,1709303454553,-500.0,0.00022191,2]
[315957038,1709303454563,-1226.5,0.00022191,2]
[315957039,1709303454572,-500.0,0.00022191,2]
[315957040,1709303454581,-1091.03,0.00022191,2]
[315957041,1709303454590,-3068.97,0.00022191,2]
[315957042,1709303454600,-500.0,0.00022191,2]
[315957043,1709303454610,-500.0,0.00022191,2]
[315957044,1709303454620,-500.0,0.00022191,2]
[315957045,1709303454629,-1332.02,0.00022191,2]
[315957046,1709303454641,-500.0,0.00022191,2]
[315957047,1709303454650,-500.0,0.00022191,2]
[315957048,1709303454659,-982.67,0.00022191,2]
[315957049,1709303454668,-986.51,0.00022191,2]
[315957050,1709303454679,-500.0,0.00022191,2]
[315957051,1709303454688,-1136.91,0.00022191,2]
[315957052,1709303454697,-824.97,0.00022191,2]
[315957053,1709303454707,-1340.08,0.00022191,2]
[315957054,1709303454718,-555.61,0.00022191,2]
[315957055,1709303454727,-500.0,0.00022191,2]
[315957056,1709303454737,-500.0,0.00022191,2]
[315957057,1709303454746,-500.0,0.00022191,2]
[315957058,1709303454755,-500.0,0.00022191,2]
[315957059,1709303454765,-500.0,0.00022191,2]
[315957060,1709303454774,-500.0,0.00022191,2]
[315957061,1709303454783,-511.5,0.00022191,2]
[315957062,1709303454792,-500.0,0.00022191,2]
[315957063,1709303454802,-500.0,0.00022191,2]
[315957064,1709303454811,-584.63,0.00022191,2]
[315957065,1709303454822,-500.0,0.00022191,2]
[315957066,1709303454831,-500.0,0.00022191,2]
[315957067,1709303454840,-500.0,0.00022191,2]
[315957068,1709303454849,-500.0,0.00022191,2]
[315957069,1709303454860,-500.0,0.00022191,2]
[315957070,1709303454869,-632.42,0.00022191,2]
[315957071,1709303454878,-6674.45,0.00022191,2]
[315957072,1709303454888,-694.81,0.00022191,2]
[315957073,1709303454897,-1092.18,0.00022191,2]
[315957074,1709303454906,-500.0,0.00022191,2]
[315957075,1709303454916,-500.0,0.00022191,2]
[315957076,1709303454925,-807.54,0.00022191,2]
[315957077,1709303454935,-2580.63,0.00022191,2]
[315957078,1709303454944,-171.553624,0.00022191,7]
[315957079,1709303454954,-171.553624,0.00022191,7]
[315957080,1709303454964,-5420.47,0.00022191,2]
[315957081,1709303454973,-500.0,0.00022191,2]
[315957082,1709303454982,-500.0,0.00022191,2]
[315957083,1709303454992,-500.0,0.00022191,2]
[315957084,1709303455001,-500.0,0.00022191,2]
[315957085,1709303455011,-171.553624,0.00022191,7]
[315957086,1709303455020,-171.553624,0.00022191,7]
[315957087,1709303455029,-500.0,0.00022191,2]
[315957088,1709303455038,-1405.59,0.00022191,2]
[315957089,1709303455048,-500.57609506,0.00022191,2]
[315957090,1709303455057,-698.12,0.00022191,2]
[315957091,1709303455066,-577.0,0.00022191,2]
[315957092,1709303455078,-739.77,0.00022191,2]
[315957093,1709303455087,-500.0,0.00022191,2]
[315957094,1709303455097,-506.44,0.00022191,2]
[315957095,1709303455106,-500.0,0.00022191,2]
[315957096,1709303455115,-500.0,0.00022191,2]
[315957097,1709303455125,-500.0,0.00022191,2]
[315957098,1709303455134,-601.26,0.00022191,2]
[315957099,1709303455144,-500.0,0.00022191,2]
[315957100,1709303455153,-3900.52,0.00022191,2]
[315957101,1709303455162,-500.0,0.00022191,2]
[315957102,1709303455171,-534.48,0.00022191,2]
[315957103,1709303455180,-500.0,0.00022191,2]
[315957104,1709303455189,-500.0,0.00022191,2]
[315957105,1709303455198,-500.0,0.00022191,2]
[315957106,1709303455207,-541.33,0.00022191,2]
[315957107,1709303455216,-500.0,0.00022191,2]
[315957108,1709303455226,-811.03,0.00022191,2]
[315957109,1709303455235,-500.0,0.00022191,2]
[315957110,1709303455245,-500.0,0.00022191,2]
[315957111,1709303455255,-516.54,0.00022191,2]
[315957112,1709303455264,-1008.96,0.00022191,2]
[315957113,1709303455273,-500.0,0.00022191,2]
[315957114,1709303455282,-500.0,0.00022191,2]
[315957115,1709303455290,-500.0,0.00022191,2]
[315957116,1709303455299,-500.0,0.00022191,2]
[315957117,1709303455308,-1978.01,0.00022191,2]
[315957118,1709303455317,-1143.08,0.00022191,2]
[315957119,1709303455328,-500.0,0.00022191,2]
[315957120,1709303455338,-500.0,0.00022191,2]
[315957121,1709303455347,-4501.33,0.00022191,2]
[315957122,1709303455356,-500.0,0.00022191,2]
[315957123,1709303455364,-500.0,0.00022191,2]
[315957124,1709303455374,-500.0,0.00022191,2]
[315957125,1709303455383,-500.0,0.00022191,2]
[315957126,1709303455392,-500.0,0.00022191,2]
[315957127,1709303455401,-500.0,0.00022191,2]
[315957128,1709303455410,-500.0,0.00022191,2]
[315957129,1709303455420,-1360.29,0.00022191,2]
[315957130,1709303455429,-844.13,0.00022191,2]
[315957131,1709303455438,-500.0,0.00022191,2]
[315957132,1709303455447,-3066.87,0.00022191,2]
[315957133,1709303455455,-276.2576103,0.00022191,2]
[315957134,1709303455465,-1262.22,0.00022191,2]
[315957135,1709303455474,-513.17,0.00022191,2]
[315957136,1709303455483,-500.0,0.00022191,2]
[315957137,1709303455492,-500.0,0.00022191,2]
[315957138,1709303455501,-500.0,0.00022191,2]
[315957139,1709303455511,-500.0,0.00022191,2]
[315957140,1709303455519,-500.0,0.00022191,2]
[315957141,1709303455529,-500.0,0.00022191,2]
[315957142,1709303455538,-500.0,0.00022191,2]
[315957143,1709303455547,-500.0,0.00022191,2]
[315957144,1709303455557,-2019.99,0.00022191,2]
[315957145,1709303455566,-669.31,0.00022191,2]
[315957146,1709303455576,-500.0,0.00022191,2]
[315957147,1709303455585,-155.51,0.00022192,2]
[315957148,1709303455594,-389.39,0.00022192,2]
[315957149,1709303455603,-345.12,0.00022203,2]
[315957150,1709303455614,-4120.99249158,0.00022205,2]
[315957151,1709303455623,-151.0,0.00022211,7]
[315957152,1709303455633,-1160.0800447,0.00022211,2]
[315957153,1709303455644,-155.31727899,0.00022211,2]
[315957154,1709303456406,-2344.68272101,0.00022211,2]
[315957155,1709303456416,-200.0,0.00022222,2]
[315957156,1709303456425,-156.06,0.00022231,2]
[315957157,1709303456435,-292.95988081,0.00022259,2]
[315957158,1709303457549,-155.07300655,0.00021867,2]
[315957159,1709303457560,-5755.64888849,0.00022149,2]
[315957160,1709303457569,-157.70427687,0.00022149,2]
[315957161,1709303457582,-156.49253061,0.00022149,2]
[315957162,1709303457591,-692.90731309,0.00022149,2]
[315957163,1709303457601,-546.60403373,0.00022149,2]
[315957164,1709303457611,-1057.72421204,0.00022149,2]
[315957165,1709303457621,-1336.43463397,0.00022149,2]
[315957166,1709303457630,-1016.15943733,0.00022149,10]
[315957167,1709303457641,-691.73065299,0.0002215,2]
[315957168,1709303457650,-169.6243714,0.0002215,2]
[315957169,1709303457659,-5137.64481378,0.0002215,2]
[315957170,1709303457668,-507.04011919,0.00022259,2]
[315957171,1709303457678,-409.83,0.00022264,2]
[315957172,1709303457687,-400.78,0.00022264,2]
[315957173,1709303457696,-85277.16172958,0.00022265,2]
[315957174,1709303457706,-295.531384,0.00022265,7]
[315957175,1709303457717,-1245.0,0.00022274,2]
[315957176,1709303457727,-7794.0,0.00022274,2]
[315957177,1709303457738,-4120.99249158,0.00022283,2]
[315957178,1709303457748,-158.55,0.00022283,2]
[315957179,1709303457757,-1000.0,0.00022299,2]
[315957180,1709303457766,-1000.0,0.00022299,2]
[315957181,1709303457775,-1295.0,0.000223,2]
[315957182,1709303457784,-158.15,0.00022316,2]
[315957183,1709303457793,-864.13,0.00022329,2]
[315957184,1709303457802,-155.51,0.00022329,2]
[315957185,1709303457811,-919.69,0.00022335,2]
[315957186,1709303457820,-407.37,0.00022335,2]
[315957187,1709303457832,-407.37,0.00022335,2]
[315957188,1709303457841,-400.7,0.00022335,2]
[315957189,1709303457850,-150.0,0.00022358,2]
[315957190,1709303457859,-4120.99249158,0.0002236,2]
[315957191,1709303457869,-151.0,0.00022365,7]
[315957192,1709303457879,-151.0,0.00022365,7]
[315957193,1709303457889,-2407.36831372,0.00022365,2]
[315957194,1709303457898,-1101.13368502,0.00022365,2]
[315957195,1709303457907,-154.63198929,0.00022365,4]
[315957196,1709303457917,-157.82728722,0.00022365,2]
[315957197,1709303457926,-263.87845872,0.00022365,2]
[315957198,1709303457936,-669.54197201,0.00022365,2]
[315957199,1709303457945,-2914.81132619,0.00022365,2]
[315957200,1709303457955,-409.83,0.00022379,2]
[315957201,1709303457964,-400.78,0.00022379,2]
[315957202,1709303457973,-1000.0,0.000224,2]
[315957203,1709303457982,-4120.99249158,0.00022437,2]
[315957204,1709303457992,-20000.0,0.0002244,4]
[315957205,1709303458001,-1000.0,0.00022449,3]
[315957206,1709303458010,-445.38194089,0.00022449,3]
[315957207,1709303458019,-217.52655566,0.00022449,3]
[315957208,1709303458028,-225.0,0.00022449,3]
[315957209,1709303458037,-1774.11681351,0.00022449,3]
[315957210,1709303458046,-305.96187795,0.00022449,3]
[315957211,1709303458055,-516.0096563,0.00022449,3]
[315957212,1709303458064,-289.88155084,0.00022449,3]
[315957213,1709303458073,-199.23590384,0.00022449,3]
[315957214,1709303458082,-366.75237333,0.00022449,3]
[315957215,1709303458091,-1000.0,0.00022449,3]
[315957216,1709303458100,-500.0,0.00022449,3]
[315957217,1709303458109,-500.0,0.00022465,2]
[315957218,1709303458119,-500.0,0.00022465,2]
[315957219,1709303458129,-500.0,0.00022465,2]
[315957220,1709303458138,-500.0,0.00022465,2]
[315957221,1709303458147,-500.0,0.00022465,2]
[315957222,1709303458156,-500.0,0.00022465,2]
[315957223,1709303458165,-500.0,0.00022465,2]
[315957224,1709303458174,-500.0,0.00022465,2]
[315957225,1709303458184,-500.0,0.00022465,2]
[315957226,1709303458193,-411.31,0.00022465,2]
[315957227,1709303458203,-500.0,0.00022465,2]
[315957228,1709303458213,-500.0,0.00022465,2]
[315957229,1709303458222,-299.16,0.00022465,2]
[315957230,1709303458232,-500.0,0.00022465,2]
[315957231,1709303458241,-970.43,0.00022465,2]
[315957232,1709303458251,-540.07227904,0.00022465,2]
[315957233,1709303458261,-500.0,0.00022465,2]
[315957234,1709303458271,-187.98,0.00022465,2]
[315957235,1709303458281,-500.0,0.00022465,2]
[315957236,1709303458290,-500.0,0.00022465,2]
[315957237,1709303458300,-500.0,0.00022465,2]
[315957238,1709303458310,-500.0,0.00022465,2]
[315957239,1709303458319,-500.0,0.00022465,2]
[315957240,1709303458331,-395.01,0.00022465,2]
[315957241,1709303458342,-403.23,0.00022465,2]
[315957242,1709303458351,-414.59,0.00022465,2]
[315957243,1709303458361,-500.0,0.00022465,2]
[315957244,1709303458371,-500.0,0.00022465,2]
[315957245,1709303458381,-500.0,0.00022465,2]
[315957246,1709303458391,-500.0,0.00022465,2]
[315957247,1709303458400,-500.0,0.00022465,2]
[315957248,1709303458411,-500.0,0.00022465,2]
[315957249,1709303458421,-500.0,0.00022465,2]
[315957250,1709303458431,-500.0,0.00022465,2]
[315957251,1709303458441,-500.0,0.00022465,2]
[315957252,1709303458451,-500.0,0.00022465,2]
[315957253,1709303458462,-500.0,0.00022465,2]
[315957254,1709303458472,-500.0,0.00022465,2]
[315957255,1709303458481,-500.0,0.00022465,2]
[315957256,1709303458491,-500.0,0.00022465,2]
[315957257,1709303458501,-500.0,0.00022465,2]
[315957258,1709303458510,-601.20482458,0.00022465,2]
[315957259,1709303458521,-500.0,0.00022465,2]
[315957260,1709303458530,-500.0,0.00022465,2]
[315957261,1709303458539,-500.0,0.00022465,2]
[315957262,1709303458549,-500.0,0.00022465,2]
[315957263,1709303458558,-500.0,0.00022465,2]
[315957264,1709303458568,-500.0,0.00022465,2]
[315957265,1709303458579,-500.0,0.00022465,2]
[315957266,1709303458588,-500.0,0.00022465,2]
[315957267,1709303458598,-500.0,0.00022465,2]
[315957268,1709303458609,-500.0,0.00022465,2]
[315957269,1709303458620,-500.0,0.00022465,2]
[315957270,1709303458629,-500.0,0.00022465,2]
[315957271,1709303458638,-500.0,0.00022465,2]
[315957272,1709303458648,-621.44,0.00022465,2]
[315957273,1709303458658,-500.0,0.00022465,2]
[315957274,1709303458667,-500.0,0.00022465,2]
[315957275,1709303458677,-1044.86,0.00022465,2]
[315957276,1709303458686,-553.02447166,0.00022465,2]
[315957277,1709303458696,-246.3955332,0.00022465,2]
[315957278,1709303458705,-1018.29,0.00022465,2]
[315957279,1709303458714,-500.0,0.00022465,2]
[315957280,1709303458723,-150.34,0.00022465,2]
[315957281,1709303458732,-500.0,0.00022465,2]
[315957282,1709303458742,-500.0,0.00022465,2]
[315957283,1709303458751,-500.0,0.00022465,2]
[315957284,1709303458760,-500.0,0.00022465,2]
[315957285,1709303458769,-500.0,0.00022465,2]
[315957286,1709303458779,-500.0,0.00022465,2]
[315957287,1709303458789,-627.53,0.00022465,2]
[315957288,1709303458798,-500.0,0.00022465,2]
[315957289,1709303458808,-500.0,0.00022465,2]
[315957290,1709303458817,-500.0,0.00022465,2]
[315957291,1709303458829,-568.18,0.00022465,2]
[315957292,1709303458839,-500.0,0.00022465,2]
[315957293,1709303458849,-500.0,0.00022465,2]
[315957294,1709303458858,-500.0,0.00022465,2]
[315957295,1709303458867,-500.0,0.00022465,2]
[315957296,1709303458876,-500.0,0.00022465,2]
[315957297,1709303458885,-708.49,0.00022465,2]
[315957298,1709303458895,-500.0,0.00022465,2]
[315957299,1709303458904,-500.0,0.00022465,2]
[315957300,1709303458914,-500.0,0.00022465,2]
[315957301,1709303458923,-500.0,0.00022465,2]
[315957302,1709303458933,-500.0,0.00022465,2]
[315957303,1709303458943,-649.34,0.00022465,2]
[315957304,1709303458952,-500.0,0.00022465,2]
[315957305,1709303458961,-500.0,0.00022465,2]
[315957306,1709303458971,-500.0,0.00022465,2]
[315957307,1709303458981,-500.0,0.00022465,2]
[315957308,1709303458990,-500.0,0.00022465,2]
[315957309,1709303458999,-541.66,0.00022465,2]
[315957310,1709303459009,-1007.82,0.00022465,2]
[315957311,1709303459019,-500.0,0.00022465,2]
[315957312,1709303459028,-500.0,0.00022465,2]
[315957313,1709303459038,-500.0,0.00022465,2]
[315957314,1709303459048,-500.0,0.00022465,2]
[315957315,1709303459057,-500.0,0.00022465,2]
[315957316,1709303459066,-500.0,0.00022465,2]
[315957317,1709303459076,-500.0,0.00022465,2]
[315957318,1709303459085,-500.0,0.00022465,2]
[315957319,1709303459095,-500.0,0.00022465,2]
[315957320,1709303459105,-500.0,0.00022465,2]
[315957321,1709303459115,-500.0,0.00022465,2]
[315957322,1709303459125,-547.05710069,0.00022465,2]
[315957323,1709303459135,-500.0,0.00022465,2]
[315957324,1709303459145,-366.07,0.00022465,2]
[315957325,1709303459155,-500.0,0.00022465,2]
[315957326,1709303459164,-691.33,0.00022465,2]
[315957327,1709303459173,-500.0,0.00022465,2]
[315957328,1709303459182,-500.0,0.00022465,2]
[315957329,1709303459192,-513.27,0.00022465,2]
[315957330,1709303459201,-643.56,0.00022465,2]
[315957331,1709303459211,-760.46,0.00022465,2]
[315957332,1709303459220,-500.0,0.00022465,2]
[315957333,1709303459230,-500.0,0.00022465,2]
[315957334,1709303459239,-500.0,0.00022465,2]
[315957335,1709303459248,-500.0,0.00022465,2]
[315957336,1709303459258,-500.0,0.00022465,2]
[315957337,1709303459267,-726.14,0.00022465,2]
[315957338,1709303459276,-485.32997071,0.00022465,2]
[315957339,1709303459286,-500.0,0.00022465,2]
[315957340,1709303459295,-500.0,0.00022465,2]
[315957341,1709303459304,-593.05,0.00022465,2]
[315957342,1709303459313,-500.0,0.00022465,2]
[315957343,1709303459324,-527.22,0.00022465,2]
[315957344,1709303459333,-876.68,0.00022465,2]
[315957345,1709303459343,-500.0,0.00022465,2]
[315957346,1709303459353,-500.0,0.00022465,2]
[315957347,1709303459363,-537.19,0.00022465,2]
[315957348,1709303459373,-500.0,0.00022465,2]
[315957349,1709303459382,-500.0,0.00022465,2]
[315957350,1709303459391,-500.0,0.00022465,2]
[315957351,1709303459401,-500.0,0.00022465,2]
[315957352,1709303459410,-500.0,0.00022465,2]
[315957353,1709303459420,-500.0,0.00022465,2]
[315957354,1709303459429,-361.24122796,0.00022465,2]
[315957355,1709303459439,-529.29,0.00022465,2]
[315957356,1709303459448,-500.0,0.00022465,2]
[315957357,1709303459457,-500.0,0.00022465,2]
[315957358,1709303459467,-500.0,0.00022465,2]
[315957359,1709303459476,-705.21,0.00022465,2]
[315957360,1709303459485,-500.0,0.00022465,2]
[315957361,1709303459495,-500.0,0.00022465,2]
[315957362,1709303459504,-500.0,0.00022465,2]
[315957363,1709303459514,-685.08,0.00022465,2]
[315957364,1709303459524,-500.0,0.00022465,2]
[315957365,1709303459533,-500.0,0.00022465,2]
[315957366,1709303459542,-500.0,0.00022465,2]
[315957367,1709303459551,-500.0,0.00022465,2]
[315957368,1709303459561,-619.69,0.00022465,2]
[315957369,1709303459571,-711.55,0.00022465,2]
[315957370,1709303459582,-500.0,0.00022465,2]
[315957371,1709303459591,-500.0,0.00022465,2]
[315957372,1709303459601,-151.0,0.00022465,7]
[315957373,1709303459612,-500.0,0.00022465,2]
[315957374,1709303459621,-500.0,0.00022465,2]
[315957375,1709303459632,-151.0,0.00022465,7]
[315957376,1709303459643,-500.0,0.00022465,2]
[315957377,1709303459653,-800.95,0.00022465,2]
[315957378,1709303459663,-500.0,0.00022465,2]
[315957379,1709303459672,-500.0,0.00022465,2]
[315957380,1709303459682,-500.0,0.00022465,2]
[315957381,1709303459691,-586.17,0.00022465,2]
[315957382,1709303459701,-313.7666232,0.00022465,2]
[315957383,1709303459712,-504.94,0.00022465,2]
[315957384,1709303459722,-500.0,0.00022465,2]
[315957385,1709303459732,-500.0,0.00022465,2]
[315957386,1709303459741,-500.0,0.00022465,2]
[315957387,1709303459750,-500.0,0.00022465,2]
[315957388,1709303459760,-561.63,0.00022465,2]
[315957389,1709303459770,-569.9,0.00022465,2]
[315957390,1709303459780,-500.0,0.00022465,2]
[315957391,1709303459789,-1161.58,0.00022465,2]
[315957392,1709303459799,-500.0,0.00022465,2]
[315957393,1709303459809,-500.0,0.00022465,2]
[315957394,1709303459819,-500.0,0.00022465,2]
[315957395,1709303459830,-500.0,0.00022465,2]
[315957396,1709303459840,-500.0,0.00022465,2]
[315957397,1709303459850,-309.9964652,0.00022465,2]
[315957398,1709303459859,-500.0,0.00022465,2]
[315957399,1709303459869,-569.63,0.00022465,2]
[315957400,1709303459878,-500.0,0.00022465,2]
[315957401,1709303459887,-500.0,0.00022465,2]
[315957402,1709303459897,-757.63,0.00022465,2]
[315957403,1709303459907,-698.55,0.00022465,2]
[315957404,1709303459916,-638.05,0.00022465,2]
[315957405,1709303459927,-500.0,0.00022465,2]
[315957406,1709303459936,-163.54918303,0.00022465,2]
[315957407,1709303459946,-500.0,0.00022465,2]
[315957408,1709303459955,-500.0,0.00022465,2]
[315957409,1709303459965,-500.0,0.00022465,2]
[315957410,1709303459975,-500.0,0.00022465,2]
[315957411,1709303459984,-500.53,0.00022465,2]
[315957412,1709303459994,-500.0,0.00022465,2]
[315957413,1709303460003,-500.0,0.00022465,2]
[315957414,1709303460013,-500.0,0.00022465,2]
[315957415,1709303460023,-687.13,0.00022465,2]
[315957416,1709303460032,-500.0,0.00022465,2]
[315957417,1709303460042,-500.0,0.00022465,2]
[315957418,1709303460052,-500.0,0.00022465,2]
[315957419,1709303460062,-500.0,0.00022465,2]
[315957420,1709303460074,-747.18,0.00022465,2]
[315957421,1709303460085,-500.0,0.00022465,2]
[315957422,1709303460095,-500.0,0.00022465,2]
[315957423,1709303460105,-500.0,0.00022465,2]
[315957424,1709303460114,-500.0,0.00022465,2]
[315957425,1709303460124,-500.0,0.00022465,2]
[315957426,1709303460134,-1256.77,0.00022465,2]
[315957427,1709303460145,-672.07,0.00022465,2]
[315957428,1709303460154,-500.0,0.00022465,2]
[315957429,1709303460164,-534.02494946,0.00022465,2]
[315957430,1709303460174,-500.0,0.00022465,2]
[315957431,1709303460183,-528.31,0.00022465,2]
[315957432,1709303460193,-1724.1,0.00022465,2]
[315957433,1709303460202,-500.0,0.00022465,2]
[315957434,1709303460212,-500.0,0.00022465,2]
[315957435,1709303460221,-500.0,0.00022465,2]
[315957436,1709303460230,-761.07,0.00022465,2]
[315957437,1709303460240,-500.0,0.00022465,2]
[315957438,1709303460250,-500.0,0.00022465,2]
[315957439,1709303460260,-500.0,0.00022465,2]
[315957440,1709303460270,-500.0,0.00022465,2]
[315957441,1709303460279,-531.21,0.00022465,2]
[315957442,1709303460289,-524.45376131,0.00022465,2]
[315957443,1709303460299,-500.0,0.00022465,2]
[315957444,1709303460308,-561.48663772,0.00022465,2]
[315957445,1709303460318,-500.0,0.00022465,2]
[315957446,1709303460328,-500.0,0.00022465,2]
[315957447,1709303460338,-591.12,0.00022465,2]
[315957448,1709303460348,-520.33,0.00022465,2]
[315957449,1709303460358,-500.0,0.00022465,2]
[315957450,1709303460582,-610.22,0.00022465,2]
[315957451,1709303460604,-500.0,0.00022465,2]
[315957452,1709303460620,-500.0,0.00022465,2]
[315957453,1709303460630,-261.52644996,0.00022465,2]
[315957454,1709303460642,-500.0,0.00022465,2]
[315957455,1709303460651,-500.0,0.00022465,2]
[315957456,1709303460661,-1208.77,0.00022465,2]
[315957457,1709303460669,-970.81,0.00022465,2]
[315957458,1709303460679,-775.38,0.00022465,2]
[315957459,1709303460688,-667.15,0.00022465,2]
[315957460,1709303460698,-520.49,0.00022465,2]
[315957461,1709303460708,-1081.39,0.00022465,2]
[315957462,1709303460717,-500.0,0.00022465,2]
[315957463,1709303460728,-699.54,0.00022465,2]
[315957464,1709303460737,-500.0,0.00022465,2]
[315957465,1709303460746,-536.88,0.00022465,2]
[315957466,1709303460756,-500.0,0.00022465,2]
[315957467,1709303460766,-557.77191152,0.00022465,2]
[315957468,1709303460776,-753.35,0.00022465,2]
[315957469,1709303460786,-500.0,0.00022465,2]
[315957470,1709303460796,-712.77,0.00022465,2]
[315957471,1709303460805,-500.0,0.00022465,2]
[315957472,1709303460815,-1715.38,0.00022465,2]
[315957473,1709303460827,-629.21,0.00022465,2]
[315957474,1709303460838,-500.0,0.00022465,2]
[315957475,1709303460850,-500.0,0.00022465,2]
[315957476,1709303460860,-677.39,0.00022465,2]
[315957477,1709303460870,-500.0,0.00022465,2]
[315957478,1709303460880,-500.0,0.00022465,2]
[315957479,1709303460890,-1281.71,0.00022465,2]
[315957480,1709303460901,-500.0,0.00022465,2]
[315957481,1709303460911,-500.0,0.00022465,2]
[315957482,1709303460921,-500.0,0.00022465,2]
[315957483,1709303460932,-1234.77,0.00022465,2]
[315957484,1709303460943,-500.0,0.00022465,2]
[315957485,1709303460953,-500.0,0.00022465,2]
[315957486,1709303460964,-500.0,0.00022465,2]
[315957487,1709303460974,-508.41,0.00022465,2]